lending/lending_fUSD_20250731
["ID","MTS","AMOUNT","RATE_DAILY","PERIOD"]
[376294567,1753921841137,-1383.03,0.00016709,2]
[376294569,1753921841147,-400.0,0.00016709,2]
[376294571,1753921841156,-400.0,0.00016709,2]
[376294573,1753921841165,-344.70209218,0.00016709,2]
[376294575,1753921841174,-400.0,0.00016709,2]
[376294577,1753921841184,-421.72,0.00016709,2]
[376294580,1753921841193,-400.0,0.00016709,2]
[376294581,1753921841202,-1028.0,0.00016709,2]
[376294583,1753921841212,-400.0,0.00016709,2]
[376294585,1753921841220,-400.0,0.00016709,2]
[376294587,1753921841229,-400.0,0.00016709,2]
[376294589,1753921841239,-1308.85,0.00016709,2]
[376294591,1753921841247,-400.0,0.00016709,2]
[376294593,1753921841257,-400.0,0.00016709,2]
[376294595,1753921841265,-400.0,0.00016709,2]
[376294597,1753921841274,-400.0,0.00016709,2]
[376294599,1753921841283,-1133.85,0.00016709,2]
[376294601,1753921841292,-1928.84,0.00016709,2]
[376294603,1753921841301,-476.46,0.00016709,2]
[376294605,1753921841311,-400.0,0.00016709,2]
[376294607,1753921841321,-400.0,0.00016709,2]
[376294608,1753921841330,-400.0,0.00016709,2]
[376294610,1753921841339,-984.36,0.00016709,2]
[376294612,1753921841348,-400.0,0.00016709,2]
[376294614,1753921841357,-1289.1,0.00016709,2]
[376294616,1753921841367,-573.83,0.00016709,2]
[376294618,1753921841376,-470.71,0.00016709,2]
[376294620,1753921841386,-400.0,0.00016709,2]
[376294622,1753921841395,-400.0,0.00016709,2]
[376294624,1753921841405,-790.9,0.00016709,2]
[376294626,1753921841414,-400.0,0.00016709,2]
[376294628,1753921841423,-400.0,0.00016709,2]
[376294629,1753921841433,-1309.29,0.00016709,2]
[376294632,1753921841443,-400.0,0.00016709,2]
[376294633,1753921841452,-400.0,0.00016709,2]
[376294635,1753921841461,-416.69,0.00016709,2]
[376294637,1753921841470,-553.07,0.00016709,2]
[376294639,1753921841479,-400.0,0.00016709,2]
[376294641,1753921841488,-400.0,0.00016709,2]
[376294643,1753921841497,-400.0,0.00016709,2]
[376294645,1753921841507,-400.0,0.0001671,2]
[376294647,1753921841516,-165.94018011,0.0001671,2]
[376294649,1753921841526,-303.01,0.00016737,2]
[376294651,1753921841535,-172.71,0.00016737,2]
[376294653,1753921841544,-1177.46,0.00016737,2]
[376294655,1753921841554,-150.0,0.00016742,2]
[376294657,1753921841563,-160.53232264,0.00016751,2]
[376294659,1753921841573,-500.0,0.00016773,2]
[376294661,1753921841582,-500.0,0.00016773,2]
[376294663,1753921841591,-500.0,0.00016773,2]
[376294665,1753921841600,-2279.1,0.00016773,2]
[376294667,1753921841609,-166.51,0.00016789,2]
[376294669,1753921841618,-253.07970826,0.0001679,2]
[376294670,1753921841627,-400.0,0.00016798,2]
[376294672,1753921841637,-214.60974646,0.00016798,2]
[376294674,1753921841646,-285.3765051,0.00016798,2]
[376294676,1753921841655,-400.0,0.00016798,2]
[376294678,1753921841664,-747.97,0.00016798,2]
[376294680,1753921841674,-621.27,0.00016798,2]
[376294682,1753921841683,-400.0,0.00016798,2]
[376294684,1753921841691,-843.86,0.00016798,2]
[376294686,1753921841700,-1059.63,0.00016798,2]
[376294688,1753921841709,-400.0,0.00016798,2]
[376294690,1753921841718,-1319.46,0.00016798,2]
[376294692,1753921841727,-664.92,0.00016798,2]
[376294694,1753921841736,-953.12,0.00016798,2]
[376294696,1753921841745,-400.0,0.00016798,2]
[376294698,1753921841755,-400.0,0.00016798,2]
[376294700,1753921841764,-1259.56,0.00016798,2]
[376294702,1753921841773,-400.0,0.00016798,2]
[376294704,1753921841782,-400.0,0.00016798,2]
[376294706,1753921841791,-445.15,0.00016798,2]
[376294708,1753921841800,-476.62,0.00016798,2]
[376294710,1753921841810,-738.81,0.00016798,2]
[376294712,1753921841820,-400.0,0.00016798,2]
[376294714,1753921841830,-1000.04,0.00016798,2]
[376294716,1753921841839,-400.0,0.00016798,2]
[376294718,1753921841848,-460.0,0.00016798,2]
[376294720,1753921841857,-751.56,0.00016798,2]
[376294722,1753921841867,-400.0,0.00016798,2]
[376294724,1753921841876,-1393.78,0.00016798,2]
[376294726,1753921841886,-442.08,0.00016798,2]
[376294727,1753921841897,-280.09,0.00016798,2]
[376294730,1753921841908,-400.0,0.00016798,2]
[376294732,1753921841917,-400.0,0.00016798,2]
[376294734,1753921841927,-400.0,0.00016798,2]
[376294735,1753921841936,-400.0,0.00016798,2]
[376294738,1753921841945,-400.0,0.00016798,2]
[376294739,1753921841954,-1030.22,0.00016798,2]
[376294741,1753921841963,-400.0,0.00016798,2]
[376294744,1753921841974,-160.53232264,0.00016798,2]
[376294745,1753921841984,-311.25754706,0.00016798,2]
[376294747,1753921841993,-312.07584213,0.00016798,2]
[376294749,1753921842002,-500.0,0.00016798,2]
[376294751,1753921842011,-276.67160023,0.00016798,2]
[376294754,1753921842022,-599.68629012,0.00016798,2]
[376294755,1753921842031,-221.90902564,0.00016798,2]
[376294757,1753921842040,-400.0,0.00016799,2]
[376294759,1753921842049,-400.0,0.00016799,2]
[376294761,1753921842061,-400.0,0.00016799,2]
[376294763,1753921842072,-400.0,0.00016799,2]
[376294765,1753921842082,-400.0,0.00016799,2]
[376294767,1753921842091,-400.0,0.00016799,2]
[376294769,1753921842100,-400.0,0.00016799,2]
[376294771,1753921842110,-363.58861405,0.00016799,2]
[376294773,1753921842119,-400.0,0.00016799,2]
[376294775,1753921842129,-400.0,0.00016799,2]
[376294777,1753921842139,-400.0,0.00016799,2]
[376294779,1753921842148,-408.19015727,0.00016799,2]
[376294781,1753921842157,-400.0,0.00016799,2]
[376294783,1753921842166,-400.0,0.00016799,2]
[376294785,1753921842175,-400.0,0.00016799,2]
[376294787,1753921842184,-400.0,0.00016799,2]
[376294789,1753921842193,-203.04,0.00016799,2]
[376294791,1753921842202,-400.0,0.00016799,2]
[376294793,1753921842211,-316.66701721,0.00016799,2]
[376294795,1753921842220,-493.08,0.00016799,2]
[376294797,1753921842229,-400.0,0.00016799,2]
[376294799,1753921842238,-448.50807069,0.00016799,2]
[376294801,1753921842247,-400.0,0.00016799,2]
[376294803,1753921842256,-400.0,0.00016799,2]
[376294805,1753921842265,-156.448792,0.00016799,2]
[376294807,1753921842275,-244.714832,0.00016799,2]
[376294809,1753921842284,-400.0,0.00016799,2]
[376294811,1753921842294,-191.096049,0.00016799,2]
[376294813,1753921842303,-281.23299703,0.00016799,2]
[376294815,1753921842313,-400.0,0.00016799,2]
[376294817,1753921842322,-276.63,0.00016799,2]
[376294819,1753921842331,-400.0,0.00016799,2]
[376294822,1753921842341,-405.73726689,0.00016799,2]
[376294825,1753921842350,-400.0,0.00016799,2]
[376294828,1753921842360,-400.0,0.00016799,2]
[376294830,1753921842369,-400.0,0.00016799,2]
[376294832,1753921842378,-400.0,0.00016799,2]
[376294834,1753921842387,-533.18,0.00016799,2]
[376294836,1753921842396,-400.0,0.00016799,2]
[376294838,1753921842405,-400.0,0.00016799,2]
[376294840,1753921842415,-400.0,0.00016799,2]
[376294842,1753921842425,-460.0,0.00016799,2]
[376294844,1753921842435,-400.0,0.00016799,2]
[376294847,1753921842445,-400.0,0.00016799,2]
[376294849,1753921842455,-400.0,0.00016799,2]
[376294851,1753921842465,-400.0,0.00016799,2]
[376294853,1753921842474,-400.0,0.00016799,2]
[376294856,1753921842485,-400.0,0.00016799,2]
[376294858,1753921842494,-200.0,0.00016799,2]
[376294860,1753921842504,-400.0,0.00016799,2]
[376294862,1753921842514,-400.0,0.00016799,2]
[376294864,1753921842523,-400.0,0.00016799,2]
[376294866,1753921842533,-400.0,0.00016799,2]
[376294868,1753921842543,-400.0,0.00016799,2]
[376294870,1753921842552,-400.0,0.00016799,2]
[376294872,1753921842562,-400.0,0.00016799,2]
[376294874,1753921842573,-400.0,0.00016799,2]
[376294876,1753921842583,-400.0,0.00016799,2]
[376294878,1753921842592,-400.0,0.00016799,2]
[376294880,1753921842602,-400.0,0.00016799,2]
[376294882,1753921842611,-400.0,0.00016799,2]
[376294884,1753921842621,-400.0,0.00016799,2]
[376294886,1753921842631,-325.16166772,0.00016799,2]
[376294888,1753921842640,-400.0,0.00016799,2]
[376294890,1753921842650,-400.0,0.00016799,2]
[376294892,1753921842659,-400.0,0.00016799,2]
[376294894,1753921842669,-400.0,0.00016799,2]
[376294896,1753921842678,-400.0,0.00016799,2]
[376294898,1753921842688,-400.0,0.00016799,2]
[376294900,1753921842697,-400.0,0.00016799,2]
[376294902,1753921842707,-400.0,0.00016799,2]
[376294904,1753921842716,-400.0,0.00016799,2]
[376294907,1753921842726,-400.0,0.00016799,2]
[376294909,1753921842736,-167.51,0.00016799,2]
[376294911,1753921842745,-400.0,0.00016799,2]
[376294912,1753921842755,-400.0,0.00016799,2]
[376294913,1753921842764,-400.0,0.00016799,2]
[376294914,1753921842773,-769.65,0.00016799,2]
[376294915,1753921842782,-400.0,0.00016799,2]
[376294916,1753921842792,-162.977035,0.00016799,2]
[376294917,1753921842801,-208.532097,0.00016799,2]
[376294918,1753921842811,-400.0,0.00016799,2]
[376294919,1753921842820,-182.5,0.00016799,2]
[376294920,1753921842829,-163.762293,0.00016799,2]
[376294921,1753921842839,-400.69,0.00016799,2]
[376294922,1753921842848,-400.0,0.00016799,2]
[376294923,1753921842857,-400.0,0.00016799,2]
[376294925,1753921842867,-400.0,0.00016799,2]
[376294927,1753921842877,-400.0,0.00016799,2]
[376294929,1753921842887,-520.14,0.00016799,2]
[376294931,1753921842896,-437.16,0.00016799,2]
[376294933,1753921842906,-400.0,0.00016799,2]
[376294935,1753921842916,-400.0,0.00016799,2]
[376294937,1753921842926,-400.0,0.00016799,2]
[376294939,1753921842935,-400.0,0.00016799,2]
[376294941,1753921842945,-397.67134167,0.00016799,2]
[376294943,1753921842955,-400.0,0.00016799,2]
[376294945,1753921842964,-593.84,0.00016799,2]
[376294947,1753921842974,-400.0,0.00016799,2]
[376294949,1753921842983,-400.0,0.00016799,2]
[376294952,1753921842993,-400.0,0.00016799,2]
[376294955,1753921843003,-400.0,0.00016799,2]
[376294958,1753921843013,-400.0,0.00016799,2]
[376294961,1753921843022,-400.0,0.00016799,2]
[376294964,1753921843031,-400.0,0.00016799,2]
[376294967,1753921843041,-400.0,0.00016799,2]
[376294970,1753921843051,-401.31792464,0.00016799,2]
[376294972,1753921843063,-400.0,0.00016799,2]
[376294974,1753921843073,-250.64571662,0.00016799,2]
[376294976,1753921843083,-400.0,0.00016799,2]
[376294978,1753921843093,-400.0,0.00016799,2]
[376294980,1753921843103,-400.0,0.00016799,2]
[376294982,1753921843112,-401.98595795,0.00016799,2]
[376294984,1753921843122,-400.0,0.00016799,2]
[376294986,1753921843131,-400.0,0.00016799,2]
[376294988,1753921843142,-400.0,0.00016799,2]
[376294990,1753921843152,-400.0,0.00016799,2]
[376294992,1753921843161,-400.0,0.00016799,2]
[376294994,1753921843171,-400.0,0.00016799,2]
[376294996,1753921843180,-400.0,0.00016799,2]
[376294998,1753921843189,-400.0,0.00016799,2]
[376295000,1753921843199,-438.76,0.00016799,2]
[376295002,1753921843209,-287.48740963,0.00016799,2]
[376295004,1753921843218,-400.0,0.00016799,2]
[376295006,1753921843228,-400.0,0.00016799,2]
[376295008,1753921843238,-400.0,0.00016799,2]
[376295010,1753921843248,-400.0,0.00016799,2]
[376295012,1753921843257,-400.0,0.00016799,2]
[376295014,1753921843267,-916.28,0.00016799,2]
[376295017,1753921843277,-400.0,0.00016799,2]
[376295019,1753921843286,-400.0,0.00016799,2]
[376295021,1753921843296,-400.0,0.00016799,2]
[376295023,1753921843305,-307.28864887,0.00016799,2]
[376295025,1753921843315,-400.0,0.00016799,2]
[376295027,1753921843326,-400.0,0.00016799,2]
[376295029,1753921843336,-400.0,0.00016799,2]
[376295031,1753921843346,-400.0,0.00016799,2]
[376295033,1753921843355,-400.0,0.00016799,2]
[376295035,1753921843365,-400.0,0.00016799,2]
[376295037,1753921843375,-400.0,0.00016799,2]
[376295039,1753921843384,-400.0,0.00016799,2]
[376295041,1753921843394,-407.2581936,0.00016799,2]
[376295043,1753921843404,-616.78,0.00016799,2]
[376295045,1753921843414,-409.68,0.00016799,2]
[376295047,1753921843423,-416.73,0.00016799,2]
[376295050,1753921843433,-400.0,0.00016799,2]
[376295052,1753921843443,-400.0,0.00016799,2]
[376295054,1753921843452,-400.0,0.00016799,2]
[376295056,1753921843462,-400.0,0.00016799,2]
[376295058,1753921843471,-400.0,0.00016799,2]
[376295060,1753921843481,-400.0,0.00016799,2]
[376295062,1753921843490,-400.0,0.00016799,2]
[376295064,1753921843500,-400.0,0.00016799,2]
[376295066,1753921843510,-400.0,0.00016799,2]
[376295068,1753921843520,-400.0,0.00016799,2]
[376295070,1753921843530,-400.0,0.00016799,2]
[376295072,1753921843539,-400.0,0.00016799,2]
[376295074,1753921843549,-400.0,0.00016799,2]
[376295076,1753921843558,-400.0,0.00016799,2]
[376295078,1753921843568,-400.0,0.00016799,2]
[376295080,1753921843577,-400.0,0.00016799,2]
[376295082,1753921843586,-400.0,0.00016799,2]
[376295085,1753921843596,-400.0,0.00016799,2]
[376295087,1753921843606,-400.0,0.00016799,2]
[376295089,1753921843615,-480.77,0.00016799,2]
[376295091,1753921843625,-400.0,0.00016799,2]
[376295093,1753921843635,-282.94,0.00016799,2]
[376295095,1753921843645,-400.0,0.00016799,2]
[376295097,1753921843655,-401.23353801,0.00016799,2]
[376295099,1753921843664,-400.0,0.00016799,2]
[376295101,1753921843674,-400.0,0.00016799,2]
[376295103,1753921843684,-400.0,0.00016799,2]
[376295105,1753921843694,-400.0,0.00016799,2]
[376295107,1753921843704,-400.0,0.00016799,2]
[376295109,1753921843714,-400.0,0.00016799,2]
[376295111,1753921843723,-400.0,0.00016799,2]
[376295113,1753921843733,-427.8,0.00016799,2]
[376295115,1753921843743,-400.0,0.00016799,2]
[376295118,1753921843753,-400.0,0.00016799,2]
[376295120,1753921843763,-400.0,0.00016799,2]
[376295122,1753921843772,-430.74,0.00016799,2]
[376295124,1753921843782,-400.0,0.00016799,2]
[376295126,1753921843791,-400.0,0.00016799,2]
[376295128,1753921843801,-400.0,0.00016799,2]
[376295130,1753921843811,-330.64,0.00016799,2]
[376295132,1753921843823,-488.68,0.00016799,2]
[376295134,1753921843833,-400.0,0.00016799,2]
[376295136,1753921843843,-400.0,0.00016799,2]
[376295138,1753921843853,-400.0,0.00016799,2]
[376295140,1753921843864,-1669.38,0.00016799,2]
[376295142,1753921843874,-400.0,0.00016799,2]
[376295144,1753921843884,-400.0,0.00016799,2]
[376295146,1753921843894,-400.0,0.00016799,2]
[376295148,1753921843903,-400.0,0.00016799,2]
[376295150,1753921843913,-407.38,0.00016799,2]
[376295152,1753921843923,-400.0,0.00016799,2]
[376295154,1753921843933,-400.0,0.00016799,2]
[376295156,1753921843943,-400.0,0.00016799,2]
[376295159,1753921843953,-400.0,0.00016799,2]
[376295161,1753921843964,-401.16314882,0.00016799,2]
[376295163,1753921843974,-151.000001,0.00016799,2]
[376295165,1753921843983,-400.0,0.00016799,2]
[376295167,1753921843993,-400.0,0.00016799,2]
[376295169,1753921844003,-404.0971144,0.00016799,2]
[376295171,1753921844013,-400.0,0.00016799,2]
[376295173,1753921844023,-400.0,0.00016799,2]
[376295175,1753921844033,-400.0,0.00016799,2]
[376295177,1753921844043,-457.2,0.00016799,2]
[376295179,1753921844053,-400.0,0.00016799,2]
[376295181,1753921844067,-400.0,0.00016799,2]
[376295183,1753921844078,-400.0,0.00016799,2]
[376295185,1753921844087,-468.76,0.00016799,2]
[376295187,1753921844097,-569.71,0.00016799,2]
[376295189,1753921844108,-400.0,0.00016799,2]
[376295191,1753921844117,-400.0,0.00016799,2]
[376295193,1753921844127,-400.0,0.00016799,2]
[376295195,1753921844139,-400.0,0.00016799,2]
[376295197,1753921844149,-400.0,0.00016799,2]
[376295199,1753921844158,-400.0,0.00016799,2]
[376295201,1753921844168,-475.88,0.00016799,2]
[376295203,1753921844178,-400.0,0.00016799,2]
[376295205,1753921844188,-400.0,0.00016799,2]
[376295208,1753921844198,-457.51,0.00016799,2]
[376295210,1753921844207,-804.6,0.00016799,2]
[376295212,1753921844217,-400.0,0.00016799,2]
[376295214,1753921844227,-400.0,0.00016799,2]
[376295216,1753921844236,-400.0,0.00016799,2]
[376295218,1753921844246,-742.18,0.00016799,2]
[376295220,1753921844256,-400.0,0.00016799,2]
[376295222,1753921844265,-448.09,0.00016799,2]
[376295224,1753921844275,-400.0,0.00016799,2]
[376295226,1753921844285,-503.56,0.00016799,2]
[376295228,1753921844294,-400.0,0.00016799,2]
[376295230,1753921844304,-400.0,0.00016799,2]
[376295232,1753921844314,-400.0,0.00016799,2]
[376295234,1753921844324,-400.0,0.00016799,2]
[376295236,1753921844334,-400.0,0.00016799,2]
[376295238,1753921844344,-400.0,0.00016799,2]
[376295240,1753921844354,-400.0,0.00016799,2]
[376295242,1753921844363,-400.0,0.00016799,2]
[376295244,1753921844373,-400.0,0.00016799,2]
[376295246,1753921844383,-578.26,0.00016799,2]
[376295248,1753921844393,-400.0,0.00016799,2]
[376295250,1753921844410,-521.87,0.00016799,2]
[376295252,1753921844428,-400.0,0.00016799,2]
[376295254,1753921844437,-400.0,0.00016799,2]
[376295257,1753921844448,-400.0,0.00016799,2]
[376295259,1753921844458,-400.0,0.00016799,2]
[376295261,1753921844468,-400.0,0.00016799,2]
[376295263,1753921844477,-744.83,0.00016799,2]
[376295265,1753921844488,-500.0,0.00016799,2]
[376295267,1753921844508,-400.0,0.00016799,2]
[376295269,1753921844526,-748.54,0.00016799,2]
[376295271,1753921844536,-951.48,0.00016799,2]
[376295273,1753921844545,-400.0,0.00016799,2]
[376295275,1753921844555,-400.0,0.00016799,2]
[376295277,1753921844564,-400.0,0.00016799,2]
[376295279,1753921844574,-400.0,0.00016799,2]
[376295281,1753921844584,-400.0,0.00016799,2]
[376295282,1753921844594,-400.0,0.00016799,2]
[376295283,1753921844604,-400.0,0.00016799,2]
[376295284,1753921844614,-764.87,0.00016799,2]
[376295285,1753921844624,-400.0,0.00016799,2]
[376295286,1753921844635,-400.0,0.00016799,2]
[376295287,1753921844645,-400.0,0.00016799,2]
[376295288,1753921844655,-400.0,0.00016799,2]
[376295289,1753921844666,-400.0,0.00016799,2]
[376295290,1753921844675,-400.0,0.00016799,2]
[376295291,1753921844685,-400.0,0.00016799,2]
[376295292,1753921844695,-400.0,0.00016799,2]
[376295293,1753921844705,-1219.04,0.00016799,2]
[376295294,1753921844714,-400.0,0.00016799,2]
[376295295,1753921844724,-400.0,0.00016799,2]
[376295296,1753921844733,-2531.08,0.00016799,2]
[376295297,1753921844743,-400.0,0.00016799,2]
[376295298,1753921844754,-151.0,0.00016799,2]
[376295299,1753921844764,-1383.67,0.00016799,2]
[376295300,1753921844774,-1956.86,0.00016799,2]
[376295301,1753921844783,-400.0,0.00016799,2]
[376295302,1753921844793,-151.0,0.00016799,2]
[376295304,1753921844803,-400.0,0.00016799,2]
[376295306,1753921844813,-400.0,0.00016799,2]
[376295308,1753921844823,-453.49,0.00016799,2]
[376295310,1753921844833,-400.0,0.00016799,2]
[376295313,1753921844843,-429.08,0.00016799,2]
[376295342,1753921845111,-1102.8,0.00016799,2]
[376295344,1753921845126,-400.0,0.00016799,2]
[376295346,1753921845136,-1601.27,0.00016799,2]
[376295348,1753921845145,-400.0,0.00016799,2]
[376295350,1753921845155,-10527.29,0.00016799,2]
[376295352,1753921845165,-400.0,0.00016799,2]
[376295354,1753921845175,-400.0,0.00016799,2]
[376295356,1753921845184,-400.0,0.00016799,2]
[376295358,1753921845194,-400.0,0.00016799,2]
[376295360,1753921845203,-710.57,0.00016799,2]
[376295362,1753921845213,-400.0,0.00016799,2]
[376295364,1753921845222,-400.0,0.00016799,2]
[376295366,1753921845232,-1328.19,0.00016799,2]
[376295368,1753921845241,-400.0,0.00016799,2]
[376295370,1753921845251,-400.0,0.00016799,2]
[376295373,1753921845260,-412.13,0.00016799,2]
[376295375,1753921845270,-400.0,0.00016799,2]
[376295377,1753921845279,-1052.64,0.00016799,2]
[376295379,1753921845288,-400.0,0.00016799,2]
[376295380,1753921845298,-1804.59,0.00016799,2]
[376295381,1753921845307,-1081.19,0.00016799,2]
[376295382,1753921845316,-647.9,0.00016799,2]
[376295383,1753921845327,-968.59,0.00016799,2]
[376295384,1753921845336,-249.59,0.00016799,2]
[376295385,1753921845344,-1536.95,0.00016799,2]
[376295386,1753921845353,-517.93,0.00016799,2]
[376295387,1753921845363,-637.58,0.00016799,2]
[376295388,1753921845372,-373.2,0.00016799,2]
[376295389,1753921845381,-400.0,0.00016799,2]
[376295391,1753921845390,-1347.24,0.00016799,2]
[376295393,1753921845399,-717.14,0.00016799,2]
[376295395,1753921845409,-439.5,0.00016799,2]
[376295397,1753921845419,-614.29,0.00016799,2]
[376295399,1753921845428,-247.16211879,0.00016799,2]
[376295402,1753921845450,-221.31788121,0.00016799,2]
[376295404,1753921845461,-400.0,0.00016799,2]
[376295406,1753921845471,-462.99278403,0.00016799,2]
[376295408,1753921845480,-400.0,0.00016799,2]
[376295410,1753921845490,-415.88814186,0.00016799,2]
[376295412,1753921845501,-267.975,0.00016799,2]
[376295415,1753921845514,-816.26685814,0.00016799,2]
[376295417,1753921845523,-257.23163526,0.00016799,2]
[376295419,1753921845539,-142.76836474,0.00016799,2]
[376295421,1753921845549,-400.0,0.00016799,2]
[376295423,1753921845558,-1817.55,0.00016799,2]
[376295425,1753921845568,-1261.49,0.00016799,2]
[376295427,1753921845579,-688.34,0.00016799,2]
[376295429,1753921845589,-400.0,0.00016799,2]
[376295431,1753921845599,-400.0,0.00016799,2]
[376295433,1753921845608,-400.0,0.00016799,2]
[376295435,1753921845617,-400.0,0.00016799,2]
[376295437,1753921845627,-400.0,0.00016799,2]
[376295439,1753921845636,-550.15,0.00016799,2]
[376295441,1753921845646,-695.5,0.00016799,2]
[376295443,1753921845655,-662.36,0.00016799,2]
[376295445,1753921845665,-400.0,0.00016799,2]
[376295447,1753921845674,-826.36,0.00016799,2]
[376295449,1753921845684,-2421.01,0.00016799,2]
[376295451,1753921845693,-751.82,0.00016799,2]
[376295453,1753921845703,-1155.77,0.00016799,2]
[376295455,1753921845712,-400.0,0.00016799,2]
[376295457,1753921845721,-1022.36,0.00016799,2]
[376295459,1753921845731,-400.0,0.00016799,2]
[376295461,1753921845740,-1418.16,0.00016799,2]
[376295463,1753921845749,-400.0,0.00016799,2]
[376295465,1753921845758,-2097.77606242,0.00016799,2]
[376295535,1753921846433,-353.92,0.00016699,2]
[376295537,1753921846444,-2594.30230987,0.00016699,2]
[376295539,1753921846454,-355.74290309,0.00016709,2]
[376295543,1753921846477,-660.03709691,0.00016709,2]
[376295545,1753921846487,-56.55850228,0.00016798,2]
[376295547,1753921846498,-343.44149772,0.00016798,2]
[376295549,1753921846508,-441.41393758,0.00016799,2]
[376295551,1753921846517,-414.38,0.00016799,2]
[376295553,1753921846527,-462.17,0.00016799,2]
[376295555,1753921846536,-400.0,0.00016799,2]
[376295557,1753921846544,-400.0,0.00016799,2]
[376295559,1753921846554,-520.38,0.00016799,2]
[376295561,1753921846563,-400.0,0.00016799,2]
[376295563,1753921846573,-400.0,0.00016799,2]
[376295565,1753921846582,-858.56,0.00016799,2]
[376295567,1753921846592,-1551.41,0.00016799,2]
[376295569,1753921846601,-495.42,0.00016799,2]
[376295571,1753921846610,-460.0,0.00016799,2]
[376295573,1753921846619,-1023.53,0.00016799,2]
[376295575,1753921846629,-594.15,0.00016799,2]
[376295577,1753921846638,-400.0,0.00016799,2]
[376295579,1753921846648,-1089.53,0.00016799,2]
[376295581,1753921846657,-970.71,0.00016799,2]
[376295583,1753921846666,-400.0,0.00016799,2]
[376295585,1753921846675,-400.0,0.00016799,2]
[376295587,1753921846685,-151.0,0.00016799,2]
[376295589,1753921846695,-400.0,0.00016799,2]
[376295591,1753921846704,-928.46,0.00016799,2]
[376295593,1753921846713,-419.5,0.00016799,2]
[376295595,1753921846723,-400.0,0.00016799,2]
[376295597,1753921846732,-813.59,0.00016799,2]
[376295599,1753921846742,-576.23,0.00016799,2]
[376295601,1753921846751,-231.51596969,0.00016799,2]
[376295603,1753921846760,-400.0,0.00016799,2]
[376295605,1753921846770,-400.0,0.00016799,2]
[376295607,1753921846779,-400.0,0.00016799,2]
[376295609,1753921846788,-400.0,0.00016799,2]
[376295611,1753921846798,-400.0,0.00016799,2]
[376295613,1753921846807,-407.42,0.00016799,2]
[376295616,1753921846817,-782.78,0.00016799,2]
[376295618,1753921846826,-406.73,0.00016799,2]
[376295620,1753921846836,-1009.34,0.00016799,2]
[376295621,1753921846845,-967.84,0.00016799,2]
[376295623,1753921846854,-400.0,0.00016799,2]
[376295625,1753921846864,-314.13848311,0.00016799,2]
[376295628,1753921846873,-400.0,0.00016799,2]
[376295629,1753921846883,-1319.95,0.00016799,2]
[376295632,1753921846892,-403.58,0.00016799,2]
[376295634,1753921846902,-529.86,0.00016799,2]
[376295636,1753921846912,-400.0,0.00016799,2]
[376295637,1753921846921,-550.98,0.00016799,2]
[376295639,1753921846930,-400.0,0.00016799,2]